fUSD/lending_fUSD_20240614
["ID","MTS","AMOUNT","RATE_DAILY","PERIOD"]
[329415177,1718328667674,-500.0,0.00024383,2]
[329415178,1718328667685,-500.0,0.00024383,2]
[329415179,1718328667709,-500.0,0.00024383,2]
[329415180,1718328667752,-500.0,0.00024383,2]
[329415181,1718328667768,-151.0,0.00024383,7]
[329415182,1718328667780,-500.0,0.00024383,2]
[329415183,1718328667792,-500.0,0.00024383,2]
[329415184,1718328667813,-500.0,0.00024383,2]
[329415185,1718328667848,-500.0,0.00024383,2]
[329415186,1718328667860,-500.0,0.00024383,2]
[329415187,1718328667877,-500.0,0.00024383,2]
[329415188,1718328667890,-500.0,0.00024383,2]
[329415189,1718328667920,-500.0,0.00024383,2]
[329415190,1718328667931,-500.0,0.00024383,2]
[329415191,1718328667943,-500.0,0.00024383,2]
[329415192,1718328667954,-500.0,0.00024383,2]
[329415193,1718328667969,-500.0,0.00024383,2]
[329415194,1718328667981,-500.0,0.00024383,2]
[329415195,1718328668007,-500.0,0.00024383,2]
[329415196,1718328668029,-500.0,0.00024383,2]
[329415197,1718328668052,-598.84,0.00024383,2]
[329415198,1718328668067,-500.0,0.00024383,2]
[329415199,1718328668083,-500.0,0.00024383,2]
[329415200,1718328668100,-500.0,0.00024383,2]
[329415201,1718328668129,-500.0,0.00024383,2]
[329415202,1718328668160,-500.0,0.00024383,2]
[329415203,1718328668178,-500.0,0.00024383,2]
[329415204,1718328668194,-719.93,0.00024383,2]
[329415205,1718328668214,-500.0,0.00024383,2]
[329415206,1718328668225,-500.0,0.00024383,2]
[329415207,1718328668245,-500.0,0.00024383,2]
[329415208,1718328668274,-500.0,0.00024383,2]
[329415209,1718328668300,-500.0,0.00024383,2]
[329415210,1718328668324,-500.0,0.00024383,2]
[329415211,1718328668354,-500.0,0.00024383,2]
[329415212,1718328668380,-151.0,0.00024383,7]
[329415213,1718328668397,-500.0,0.00024383,2]
[329415214,1718328668410,-500.0,0.00024383,2]
[329415215,1718328668439,-500.0,0.00024383,2]
[329415216,1718328668451,-500.0,0.00024383,2]
[329415217,1718328668465,-500.0,0.00024383,2]
[329415218,1718328668493,-500.0,0.00024383,2]
[329415219,1718328668510,-500.0,0.00024383,2]
[329415220,1718328668526,-500.0,0.00024383,2]
[329415221,1718328668540,-500.0,0.00024383,2]
[329415222,1718328668560,-214.078676,0.00024383,7]
[329415223,1718328668591,-500.0,0.00024383,2]
[329415224,1718328668611,-500.0,0.00024383,2]
[329415225,1718328668633,-500.0,0.00024383,2]
[329415226,1718328668653,-500.0,0.00024383,2]
[329415227,1718328668681,-997.89,0.00024383,2]
[329415228,1718328668695,-500.0,0.00024383,2]
[329415229,1718328668715,-500.0,0.00024383,2]
[329415230,1718328668744,-500.0,0.00024383,2]
[329415231,1718328668770,-500.0,0.00024383,2]
[329415232,1718328668788,-1232.27,0.00024383,2]
[329415233,1718328668836,-500.0,0.00024383,2]
[329415234,1718328668870,-500.0,0.00024383,2]
[329415235,1718328668884,-500.0,0.00024383,2]
[329415236,1718328668895,-500.0,0.00024383,2]
[329415237,1718328668908,-500.0,0.00024383,2]
[329415238,1718328668921,-500.0,0.00024383,2]
[329415239,1718328668932,-695.7,0.00024383,2]
[329415240,1718328668952,-500.0,0.00024383,2]
[329415241,1718328668968,-545.28,0.00024383,2]
[329415242,1718328668982,-552.3,0.00024383,2]
[329415243,1718328668995,-500.0,0.00024383,2]
[329415244,1718328669007,-500.0,0.00024383,2]
[329415245,1718328669018,-500.0,0.00024383,2]
[329415246,1718328669052,-500.0,0.00024383,2]
[329415247,1718328669065,-500.0,0.00024383,2]
[329415248,1718328669078,-500.0,0.00024383,2]
[329415249,1718328669089,-500.0,0.00024383,2]
[329415250,1718328669115,-500.0,0.00024383,2]
[329415251,1718328669147,-922.06,0.00024383,2]
[329415252,1718328669159,-191.99871247,0.00024383,2]
[329415253,1718328669180,-500.0,0.00024383,2]
[329415254,1718328669192,-1020.66,0.00024383,2]
[329415255,1718328669205,-500.0,0.00024383,2]
[329415256,1718328669218,-500.0,0.00024383,2]
[329415257,1718328669233,-1333.56,0.00024383,2]
[329415258,1718328669247,-500.0,0.00024383,2]
[329415259,1718328669259,-578.22,0.00024383,2]
[329415260,1718328669276,-500.0,0.00024383,2]
[329415261,1718328669287,-500.0,0.00024383,2]
[329415262,1718328669304,-500.0,0.00024383,2]
[329415263,1718328669340,-500.0,0.00024383,2]
[329415264,1718328669352,-904.07,0.00024383,2]
[329415265,1718328669362,-500.0,0.00024383,2]
[329415266,1718328669375,-500.0,0.00024383,2]
[329415267,1718328669399,-556.85,0.00024383,2]
[329415268,1718328669411,-500.0,0.00024383,2]
[329415269,1718328669437,-903.49,0.00024383,2]
[329415270,1718328669449,-500.0,0.00024383,2]
[329415271,1718328669478,-500.0,0.00024383,2]
[329415272,1718328669499,-500.0,0.00024383,2]
[329415273,1718328669513,-154.883462,0.00024383,7]
[329415274,1718328669541,-500.0,0.00024383,2]
[329415275,1718328669568,-512.2,0.00024383,2]
[329415276,1718328669590,-500.0,0.00024383,2]
[329415277,1718328669618,-1002.39,0.00024383,2]
[329415278,1718328669633,-738.2,0.00024383,2]
[329415279,1718328669653,-500.0,0.00024383,2]
[329415280,1718328669669,-500.0,0.00024383,2]
[329415281,1718328669681,-500.0,0.00024383,2]
[329415282,1718328669705,-529.12983907,0.00024383,2]
[329415283,1718328669733,-500.0,0.00024383,2]
[329415284,1718328669747,-500.0,0.00024383,2]
[329415285,1718328669783,-500.0,0.00024383,2]
[329415286,1718328669802,-500.0,0.00024383,2]
[329415287,1718328669817,-500.0,0.00024383,2]
[329415288,1718328669830,-500.0,0.00024383,2]
[329415289,1718328669844,-798.44,0.00024383,2]
[329415290,1718328669856,-500.0,0.00024383,2]
[329415291,1718328669871,-262.1,0.00024383,2]
[329415292,1718328669884,-500.0,0.00024383,2]
[329415293,1718328669905,-500.0,0.00024383,2]
[329415294,1718328669933,-500.0,0.00024383,2]
[329415295,1718328669945,-500.0,0.00024383,2]
[329415296,1718328669963,-500.0,0.00024383,2]
[329415297,1718328669985,-500.0,0.00024383,2]
[329415298,1718328670064,-591.59,0.00024383,2]
[329415299,1718328670091,-500.0,0.00024383,2]
[329415300,1718328670110,-500.0,0.00024383,2]
[329415301,1718328670131,-500.0,0.00024383,2]
[329415302,1718328670153,-659.35,0.00024383,2]
[329415303,1718328670198,-500.0,0.00024383,2]
[329415304,1718328670245,-500.0,0.00024383,2]
[329415305,1718328670261,-500.0,0.00024383,2]
[329415306,1718328670274,-569.74,0.00024383,2]
[329415307,1718328670324,-500.0,0.00024383,2]
[329415308,1718328670348,-301.290227,0.00024383,7]
[329415309,1718328670374,-512.83531871,0.00024383,2]
[329415310,1718328670391,-549.56,0.00024383,2]
[329415311,1718328670434,-621.41,0.00024383,2]
[329415312,1718328670449,-500.0,0.00024383,2]
[329415313,1718328670489,-630.44,0.00024383,2]
[329415314,1718328670501,-500.0,0.00024383,2]
[329415315,1718328670513,-500.0,0.00024383,2]
[329415316,1718328670527,-500.0,0.00024383,2]
[329415317,1718328670561,-500.0,0.00024383,2]
[329415318,1718328670579,-500.0,0.00024383,2]
[329415319,1718328670603,-500.0,0.00024383,2]
[329415320,1718328670620,-500.0,0.00024383,2]
[329415321,1718328670646,-609.10630909,0.00024383,2]
[329415322,1718328670712,-500.0,0.00024383,2]
[329415323,1718328670742,-2024.27,0.00024383,2]
[329415324,1718328670771,-661.6,0.00024383,2]
[329415325,1718328670786,-550.31,0.00024383,2]
[329415326,1718328670803,-151.0,0.00024383,7]
[329415327,1718328670823,-500.0,0.00024383,2]
[329415328,1718328670842,-151.0,0.00024383,7]
[329415329,1718328670853,-1051.97,0.00024383,2]
[329415330,1718328670864,-166.09726611,0.00024383,2]
[329415331,1718328670881,-500.0,0.00024383,2]
[329415332,1718328670892,-500.0,0.00024383,2]
[329415333,1718328670910,-500.0,0.00024383,2]
[329415334,1718328670926,-151.0,0.00024383,7]
[329415335,1718328670961,-699.68,0.00024383,2]
[329415336,1718328670972,-560.51,0.00024383,2]
[329415337,1718328670992,-2230.14,0.00024383,2]
[329415338,1718328671010,-500.0,0.00024383,2]
[329415339,1718328671032,-231.416794,0.00024383,7]
[329415340,1718328671045,-151.0,0.00024383,7]
[329415341,1718328671058,-500.0,0.00024383,2]
[329415342,1718328671070,-1026.29,0.00024383,2]
[329415343,1718328671089,-6651.01,0.00024383,2]
[329415344,1718328671113,-500.0,0.00024383,2]
[329415345,1718328671157,-203.35276709,0.00024383,2]
[329415346,1718328671171,-151.0,0.00024383,7]
[329415347,1718328671216,-500.0,0.00024383,2]
[329415348,1718328671257,-500.0,0.00024383,2]
[329415349,1718328671276,-905.81,0.00024383,2]
[329415350,1718328671295,-339.50929358,0.00024383,2]
[329415351,1718328671308,-151.0,0.00024383,7]
[329415352,1718328671321,-500.0,0.00024383,2]
[329415353,1718328671350,-500.0,0.00024383,2]
[329415354,1718328671362,-500.0,0.00024383,2]
[329415355,1718328671408,-807.05,0.00024383,2]
[329415356,1718328671431,-500.0,0.00024383,2]
[329415357,1718328671455,-500.0,0.00024383,2]
[329415358,1718328671469,-2365.65,0.00024383,2]
[329415359,1718328671487,-500.0,0.00024383,2]
[329415360,1718328671511,-179.16919,0.00024383,7]
[329415361,1718328671528,-500.0,0.00024383,2]
[329415362,1718328671542,-500.0,0.00024383,2]
[329415363,1718328671556,-373.56,0.00024383,2]
[329415364,1718328671572,-593.15,0.00024383,2]
[329415365,1718328671584,-179.16919,0.00024383,7]
[329415366,1718328671603,-2105.93,0.00024383,2]
[329415367,1718328671628,-500.0,0.00024383,2]
[329415368,1718328671654,-500.0,0.00024383,2]
[329415369,1718328671678,-843.89,0.00024383,2]
[329415370,1718328671696,-500.0,0.00024383,2]
[329415371,1718328671708,-500.0,0.00024383,2]
[329415372,1718328671750,-699.16,0.00024383,2]
[329415373,1718328671763,-500.0,0.00024383,2]
[329415374,1718328671786,-500.0,0.00024383,2]
[329415375,1718328671824,-598.1,0.00024383,2]
[329415376,1718328671855,-7638.61,0.00024383,2]
[329415377,1718328671884,-3190.81,0.00024383,2]
[329415378,1718328671911,-3649.11,0.00024383,2]
[329415379,1718328671929,-500.0,0.00024383,2]
[329415380,1718328671957,-500.0,0.00024383,2]
[329415381,1718328671975,-1217.69,0.00024383,2]
[329415382,1718328671988,-2721.15,0.00024383,2]
[329415383,1718328672017,-500.0,0.00024383,2]
[329415384,1718328672039,-500.0,0.00024383,2]
[329415385,1718328672051,-500.0,0.00024383,2]
[329415386,1718328672064,-500.0,0.00024383,2]
[329415387,1718328672075,-500.0,0.00024383,2]
[329415388,1718328672089,-1346.53,0.00024383,2]
[329415389,1718328672108,-1011.07,0.00024383,2]
[329415390,1718328672133,-500.0,0.00024383,2]
[329415391,1718328672150,-13586.59,0.00024383,2]
[329415392,1718328672165,-680.82,0.00024383,2]
[329415393,1718328672182,-2862.08,0.00024383,2]
[329415394,1718328672193,-2933.81,0.00024383,2]
[329415395,1718328672210,-500.0,0.00024383,2]
[329415396,1718328672234,-761.51,0.00024383,2]
[329415397,1718328672261,-500.0,0.00024383,2]
[329415398,1718328672284,-500.0,0.00024383,2]
[329415399,1718328672299,-2631.81,0.00024383,2]
[329415400,1718328672338,-563.33,0.00024383,2]
[329415401,1718328672356,-1642.68,0.00024383,2]
[329415402,1718328672368,-1745.88,0.00024383,2]
[329415403,1718328672384,-299.17,0.00024383,2]
[329415404,1718328672407,-500.0,0.00024383,2]
[329415405,1718328672424,-500.0,0.00024383,2]
[329415406,1718328672438,-500.0,0.00024383,2]
[329415407,1718328672450,-500.0,0.00024383,2]
[329415408,1718328672463,-500.0,0.00024383,2]
[329415409,1718328672481,-500.0,0.00024383,2]
[329415410,1718328672501,-1902.96,0.00024383,2]
[329415411,1718328672526,-773.16,0.00024383,2]
[329415412,1718328672545,-2172.15,0.00024383,2]
[329415413,1718328672563,-1825.98,0.00024383,2]
[329415414,1718328672578,-500.0,0.00024383,2]
[329415415,1718328672597,-500.0,0.00024383,2]
[329415416,1718328672611,-679.92,0.00024383,2]
[329415417,1718328672631,-986.43,0.00024383,2]
[329415418,1718328672643,-500.0,0.00024383,2]
[329415419,1718328672662,-500.0,0.00024383,2]
[329415420,1718328672676,-151.0,0.00024383,7]
[329415421,1718328672699,-1829.1,0.00024383,2]
[329415422,1718328672735,-1832.39,0.00024383,2]
[329415423,1718328672765,-1082.5,0.00024383,2]
[329415424,1718328672796,-638.87,0.00024383,2]
[329415425,1718328672810,-2157.56,0.00024383,2]
[329415426,1718328672822,-906.62,0.00024383,2]
[329415427,1718328672836,-500.0,0.00024383,2]
[329415428,1718328672849,-500.0,0.00024383,2]
[329415429,1718328672877,-500.0,0.00024383,2]
[329415430,1718328672901,-690.46,0.00024383,2]
[329415431,1718328672928,-500.0,0.00024383,2]
[329415432,1718328672947,-500.0,0.00024383,2]
[329415433,1718328672958,-988.9,0.00024383,2]
[329415434,1718328672970,-731.35,0.00024383,2]
[329415435,1718328672988,-500.0,0.00024383,2]
[329415436,1718328673014,-613.74,0.00024383,2]
[329415437,1718328673028,-500.0,0.00024383,2]
[329415438,1718328673042,-27287.16,0.00024383,2]
[329415439,1718328673056,-500.0,0.00024383,2]
[329415440,1718328673070,-500.0,0.00024383,2]
[329415441,1718328673082,-500.0,0.00024383,2]
[329415442,1718328673094,-910.96,0.00024383,2]
[329415443,1718328673115,-500.0,0.00024383,2]
[329415444,1718328673153,-6932.08,0.00024383,2]
[329415445,1718328673186,-974.92,0.00024383,2]
[329415446,1718328673217,-500.0,0.00024383,2]
[329415447,1718328673252,-2616.08,0.00024383,2]
[329415448,1718328673280,-817.09,0.00024383,2]
[329415449,1718328673317,-1080.82,0.00024383,2]
[329415450,1718328673334,-709.94,0.00024383,2]
[329415451,1718328673364,-500.0,0.00024383,2]
[329415452,1718328673386,-500.0,0.00024383,2]
[329415453,1718328673409,-2321.35,0.00024383,2]
[329415454,1718328673426,-1643.14,0.00024383,2]
[329415455,1718328673443,-6948.28,0.00024383,2]
[329415456,1718328673461,-488.97752015,0.00024383,2]
[329415457,1718328673497,-500.0,0.00024383,2]
[329415458,1718328673511,-2845.46,0.00024383,2]
[329415459,1718328673530,-500.0,0.00024383,2]
[329415460,1718328673544,-1414.89,0.00024383,2]
[329415461,1718328673557,-500.0,0.00024383,2]
[329415462,1718328673573,-500.0,0.00024383,2]
[329415463,1718328673587,-13659.59,0.00024383,2]
[329415464,1718328673608,-1408.71,0.00024383,2]
[329415465,1718328673621,-1393.56,0.00024383,2]
[329415466,1718328673636,-2259.66,0.00024383,2]
[329415467,1718328673840,-1111.31,0.00024383,2]
[329415468,1718328673905,-500.0,0.00024383,2]
[329415469,1718328673920,-500.0,0.00024383,2]
[329415470,1718328673951,-500.0,0.00024383,2]
[329415471,1718328673984,-500.0,0.00024383,2]
[329415472,1718328674020,-500.0,0.00024383,2]
[329415473,1718328674046,-10075.29,0.00024383,2]
[329415474,1718328674057,-500.0,0.00024383,2]
[329415475,1718328674085,-500.0,0.00024383,2]
[329415476,1718328674105,-500.0,0.00024383,2]
[329415477,1718328674122,-943.27,0.00024383,2]
[329415478,1718328674152,-3909.82,0.00024383,2]
[329415479,1718328674171,-151.0,0.00024383,7]
[329415480,1718328674200,-1168.64,0.00024383,2]
[329415481,1718328674217,-1483.04,0.00024383,2]
[329415482,1718328674253,-500.0,0.00024383,2]
[329415483,1718328674295,-500.0,0.00024383,2]
[329415484,1718328674312,-4875.13,0.00024383,2]
[329415485,1718328674335,-500.0,0.00024383,2]
[329415486,1718328674349,-500.0,0.00024383,2]
[329415487,1718328674365,-651.52,0.00024383,2]
[329415488,1718328674387,-1146.24,0.00024383,2]
[329415489,1718328674416,-2483.67,0.00024383,2]
[329415490,1718328674435,-500.0,0.00024383,2]
[329415491,1718328674448,-151.0,0.00024383,7]
[329415492,1718328674485,-500.0,0.00024383,2]
[329415493,1718328674507,-1056.72,0.00024383,2]
[329415494,1718328674534,-2980.85,0.00024383,2]
[329415495,1718328674546,-3759.26,0.00024383,2]
[329415496,1718328674564,-500.0,0.00024383,2]
[329415497,1718328674580,-159.002343,0.00024383,7]
[329415498,1718328674592,-500.0,0.00024383,2]
[329415499,1718328674604,-500.0,0.00024383,2]
[329415500,1718328674620,-2040.13,0.00024383,2]
[329415501,1718328674632,-500.0,0.00024383,2]
[329415502,1718328674646,-949.95,0.00024383,2]
[329415503,1718328674664,-726.56,0.00024383,2]
[329415504,1718328674679,-1419.27,0.00024383,2]
[329415505,1718328674697,-1026.42,0.00024383,2]
[329415506,1718328674709,-500.0,0.00024383,2]
[329415507,1718328674728,-500.0,0.00024383,2]
[329415508,1718328674744,-500.0,0.00024383,2]
[329415509,1718328674756,-1958.96,0.00024383,2]
[329415510,1718328674767,-500.0,0.00024383,2]
[329415511,1718328674780,-500.0,0.00024383,2]
[329415512,1718328674794,-500.0,0.00024383,2]
[329415513,1718328674806,-1457.15,0.00024383,2]
[329415514,1718328674841,-500.0,0.00024383,2]
[329415515,1718328674872,-151.0,0.00024383,7]
[329415516,1718328674906,-2166.24,0.00024383,2]
[329415517,1718328674919,-1585.82,0.00024383,2]
[329415518,1718328674932,-1164.45,0.00024383,2]
[329415519,1718328674951,-1370.89,0.00024383,2]
[329415520,1718328674967,-500.0,0.00024383,2]
[329415521,1718328674995,-500.0,0.00024383,2]
[329415522,1718328675006,-500.0,0.00024383,2]
[329415523,1718328675019,-500.0,0.00024383,2]
[329415524,1718328675030,-979.9,0.00024383,2]
[329415525,1718328675043,-1246.72,0.00024383,2]
[329415526,1718328675055,-617.62,0.00024383,2]
[329415527,1718328675066,-1310.68,0.00024383,2]
[329415528,1718328675077,-928.5,0.00024383,2]
[329415529,1718328675087,-976.37,0.00024383,2]
[329415530,1718328675099,-2479.24,0.00024383,2]
[329415531,1718328675113,-500.0,0.00024383,2]
[329415532,1718328675127,-1915.78,0.00024383,2]
[329415533,1718328675138,-152.590505,0.00024383,7]
[329415534,1718328675149,-500.0,0.00024383,2]
[329415535,1718328675161,-9450.18,0.00024383,2]
[329415536,1718328675175,-500.0,0.00024383,2]
[329415537,1718328675188,-758.88,0.00024383,2]
[329415538,1718328675203,-4571.95,0.00024383,2]
[329415539,1718328675219,-500.0,0.00024383,2]
[329415540,1718328675241,-1010.1,0.00024383,2]
[329415541,1718328675273,-3729.75,0.00024383,2]
[329415542,1718328675287,-151.0,0.00024383,7]
[329415543,1718328675312,-1160.9,0.00024383,2]
[329415544,1718328675325,-1291.17,0.00024383,2]
[329415545,1718328675360,-1442.54,0.00024383,2]
[329415546,1718328675374,-500.0,0.00024383,2]
[329415547,1718328675396,-1437.83,0.00024383,2]
[329415548,1718328675413,-1078.82,0.00024383,2]
[329415549,1718328675428,-3179.39,0.00024383,2]
[329415550,1718328675440,-154.792761,0.00024383,7]
[329415551,1718328675452,-4644.91,0.00024383,2]
[329415552,1718328675467,-660.45,0.00024383,2]
[329415553,1718328675478,-500.0,0.00024383,2]
[329415554,1718328675489,-500.0,0.00024383,2]
[329415555,1718328675503,-500.0,0.00024383,2]
[329415556,1718328675514,-3968.87,0.00024383,2]
[329415557,1718328675533,-2460.17,0.00024383,2]
[329415558,1718328675557,-1085.81,0.00024383,2]
[329415559,1718328675574,-3852.04,0.00024383,2]
[329415560,1718328675592,-500.0,0.00024383,2]
[329415561,1718328675603,-4640.65,0.00024383,2]
[329415562,1718328675615,-374.92281397,0.00024383,2]
[329415563,1718328675628,-500.0,0.00024383,2]
[329415564,1718328675640,-232.06603777,0.00024383,2]
[329415565,1718328675655,-855.86,0.00024383,2]
[329415566,1718328675668,-164.775248,0.00024383,7]
[329415567,1718328675683,-1149.69,0.00024383,2]
[329415568,1718328675715,-151.0,0.00024383,7]
[329415569,1718328675737,-2477.54,0.00024383,2]
[329415570,1718328675752,-2739.81,0.00024383,2]
[329415571,1718328675767,-781.38,0.00024383,2]
[329415572,1718328675778,-500.0,0.00024383,2]
[329415573,1718328675788,-164.775248,0.00024383,7]
[329415574,1718328675802,-500.0,0.00024383,2]
[329415575,1718328675815,-22917.63,0.00024383,2]
[329415576,1718328675829,-2363.24,0.00024383,2]
[329415577,1718328675843,-2489.52,0.00024383,2]
[329415578,1718328675862,-801.82,0.00024383,2]
[329415579,1718328675890,-1037.71,0.00024383,2]
[329415580,1718328675907,-1182.53,0.00024383,2]
[329415581,1718328675919,-500.0,0.00024383,2]
[329415582,1718328675932,-671.04,0.00024383,2]
[329415583,1718328675944,-2448.61,0.00024383,2]
[329415584,1718328675957,-709.17,0.00024383,2]
[329415585,1718328675970,-2250.55,0.00024383,2]
[329415586,1718328675981,-500.0,0.00024383,2]
[329415587,1718328675993,-151.0,0.00024383,7]
[329415588,1718328676005,-1131.25,0.00024383,2]
[329415589,1718328676018,-151.0,0.00024383,7]
[329415590,1718328676039,-663.02,0.00024383,2]
[329415591,1718328676056,-2614.62,0.00024383,2]
[329415592,1718328676073,-500.0,0.00024383,2]
[329415593,1718328676091,-500.0,0.00024383,2]
[329415594,1718328676109,-560.42,0.00024383,2]
[329415595,1718328676125,-500.0,0.00024383,2]
[329415596,1718328676156,-500.0,0.00024383,2]
[329415597,1718328676168,-3845.21,0.00024383,2]
[329415598,1718328676190,-552.12687078,0.00024383,2]
[329415599,1718328676203,-500.0,0.00024383,2]
[329415600,1718328676218,-967.09,0.00024383,2]
[329415601,1718328676231,-500.0,0.00024383,2]
[329415602,1718328676246,-3200.03,0.00024383,2]
[329415603,1718328676269,-250.0,0.00024383,2]
[329415604,1718328676304,-500.0,0.00024383,2]
[329415605,1718328676317,-714.39,0.00024383,2]
[329415606,1718328676335,-6182.51,0.00024383,2]
[329415607,1718328676347,-2771.64,0.00024383,2]
[329415608,1718328676369,-1117.03,0.00024383,2]
[329415609,1718328676398,-500.0,0.00024383,2]
[329415610,1718328676418,-500.0,0.00024383,2]
[329415611,1718328676429,-818.88,0.00024383,2]
[329415612,1718328676468,-500.0,0.00024383,2]
[329415613,1718328676497,-13361.61,0.00024383,2]
[329415614,1718328676510,-500.0,0.00024383,2]
[329415615,1718328676522,-1181.16,0.00024383,2]
[329415616,1718328676547,-500.0,0.00024383,2]
[329415617,1718328676558,-4766.45,0.00024383,2]
[329415618,1718328676572,-500.0,0.00024383,2]
[329415619,1718328676598,-500.0,0.00024383,2]
[329415620,1718328676613,-500.0,0.00024383,2]
[329415621,1718328676630,-740.73,0.00024383,2]
[329415622,1718328676648,-584.95,0.00024383,2]
[329415623,1718328676661,-500.0,0.00024383,2]
[329415624,1718328676679,-151.0,0.00024383,7]
[329415625,1718328676692,-932.3,0.00024383,2]
[329415626,1718328676707,-151.0,0.00024383,7]
[329415627,1718328676731,-500.0,0.00024383,2]
[329415628,1718328676747,-500.0,0.00024383,2]
[329415629,1718328676763,-151.0,0.00024383,7]
[329415630,1718328676781,-2700.76,0.00024383,2]
[329415631,1718328676792,-500.0,0.00024383,2]
[329415632,1718328676804,-151.0,0.00024383,7]
[329415633,1718328676817,-1209.25,0.00024383,2]
[329415634,1718328676830,-1062.24347063,0.00024383,2]
[329415635,1718328676840,-22379.30252081,0.00024383,2]
[329415636,1718328676852,-798.67342329,0.00024383,2]
[329415637,1718328676863,-296.22,0.00024384,2]
[329415638,1718328676873,-181.99,0.00024384,2]
[329415639,1718328676892,-589.0,0.0002449,2]
[329415640,1718328676913,-1501.98643057,0.000245,3]
[329415641,1718328676929,-3808.1315832,0.0002458,2]
[329415642,1718328676946,-500.0,0.00024656,2]
[329415643,1718328676957,-500.0,0.00024656,2]
[329415644,1718328676979,-500.0,0.00024656,2]
[329415645,1718328676998,-579.56214684,0.00024656,2]
[329415646,1718328677009,-500.0,0.00024657,2]
[329415647,1718328677019,-500.0,0.00024657,2]
[329415648,1718328677039,-500.0,0.00024657,2]
[329415649,1718328677049,-500.0,0.00024657,2]
[329415650,1718328677059,-500.0,0.00024657,2]
[329415651,1718328677071,-500.0,0.00024657,2]
[329415652,1718328677081,-500.0,0.00024657,2]
[329415653,1718328677092,-500.0,0.00024657,2]
[329415654,1718328677104,-500.0,0.00024657,2]
[329415655,1718328677115,-500.0,0.00024657,2]
[329415656,1718328677135,-500.0,0.00024657,2]
[329415657,1718328677147,-500.0,0.00024657,2]
[329415658,1718328677158,-500.0,0.00024657,2]
[329415659,1718328677170,-500.0,0.00024657,2]
[329415660,1718328677181,-500.0,0.00024657,2]
[329415661,1718328677194,-500.0,0.00024657,2]
[329415662,1718328677205,-500.0,0.00024657,2]
[329415663,1718328677218,-500.0,0.00024657,2]
[329415664,1718328677229,-500.0,0.00024657,2]
[329415665,1718328677241,-500.0,0.00024657,2]
[329415666,1718328677256,-500.0,0.00024657,2]
[329415667,1718328677266,-153.1078978,0.00024657,2]
[329415668,1718328677276,-500.0,0.00024657,2]
[329415669,1718328677287,-500.0,0.00024657,2]
[329415670,1718328677298,-500.0,0.00024657,2]
[329415671,1718328677309,-500.0,0.00024657,2]
[329415672,1718328677320,-500.0,0.00024657,2]
[329415673,1718328677331,-500.0,0.00024657,2]
[329415674,1718328677342,-500.0,0.00024657,2]
[329415675,1718328677353,-500.0,0.00024657,2]
[329415676,1718328677368,-500.0,0.00024657,2]